[Event "Titled Tuesday Blitz August 16 Late 2022"]
[White "Urazayev, Arystanbek"]
[Black "Grischuk, Alexander"]
[WhiteFideId "13709810"]
[BlackFideId "4126025"]
[WhiteElo "2441"]
[BlackElo "2762"]
[Result "0-1"]
[Round "07"]
[TimeControl "180+1"]
[Date "2022.08.16"]
[WhiteClock "0:00:16"]
[BlackClock "0:01:08"]

1. e4 {[%clk 0:03:00]}  e6 {[%clk 0:03:00]} 2. d4 {[%clk 0:03:00]}  d5 {[%clk 0:03:00]} 3. e5 {[%clk 0:03:01]}  c5 {[%clk 0:03:00]} 4. c3 {[%clk 0:03:01]}  Nc6 {[%clk 0:02:59]} 5. Nf3 {[%clk 0:03:02]}  Bd7 {[%clk 0:02:59]} 6. Be2 {[%clk 0:03:02]}  Nge7 {[%clk 0:02:57]} 7. Na3 {[%clk 0:03:03]}  cxd4 {[%clk 0:02:56]} 8. cxd4 {[%clk 0:03:03]}  Nf5 {[%clk 0:02:57]} 9. Nc2 {[%clk 0:03:04]}  Qb6 {[%clk 0:02:58]} 10. O-O {[%clk 0:03:03]}  a5 {[%clk 0:02:58]} 11. b3 {[%clk 0:03:00]}  Nb4 {[%clk 0:02:52]} 12. Ne3 {[%clk 0:02:54]}  Nxe3 {[%clk 0:02:49]} 13. Bxe3 {[%clk 0:02:54]}  Bb5 {[%clk 0:02:47]} 14. a4 {[%clk 0:02:44]}  Bxe2 {[%clk 0:02:46]} 15. Qxe2 {[%clk 0:02:45]}  Qa6 {[%clk 0:02:45]} 16. Qb2 {[%clk 0:02:24]}  Be7 {[%clk 0:02:38]} 17. h4 {[%clk 0:02:18]}  h6 {[%clk 0:02:36]} 18. h5 {[%clk 0:02:08]}  Qd3 {[%clk 0:02:33]} 19. Qb1 {[%clk 0:02:00]}  Kd7 {[%clk 0:02:22]} 20. Qxd3 {[%clk 0:01:53]}  Nxd3 {[%clk 0:02:22]} 21. Rfd1 {[%clk 0:01:53]}  Nb4 {[%clk 0:02:23]} 22. Rdc1 {[%clk 0:01:50]}  Rhc8 {[%clk 0:02:15]} 23. Ne1 {[%clk 0:01:51]}  Rxc1 {[%clk 0:02:12]} 24. Rxc1 {[%clk 0:01:51]}  b5 {[%clk 0:02:05]} 25. g4 {[%clk 0:01:40]}  bxa4 {[%clk 0:02:00]} 26. bxa4 {[%clk 0:01:41]}  Rb8 {[%clk 0:01:59]} 27. Kf1 {[%clk 0:01:32]}  Nc6 {[%clk 0:01:56]} 28. Nd3 {[%clk 0:01:33]}  Rb3 {[%clk 0:01:54]} 29. Nc5+ {[%clk 0:00:42]}  Bxc5 {[%clk 0:01:53]} 30. Rxc5 {[%clk 0:00:42]}  Rb4 {[%clk 0:01:50]} 31. f4 {[%clk 0:00:28]}  Rxa4 {[%clk 0:01:47]} 32. Kf2 {[%clk 0:00:21]}  Nxd4 {[%clk 0:01:41]} 33. f5 {[%clk 0:00:20]}  Nc6 {[%clk 0:01:34]} 34. f6 {[%clk 0:00:19]}  Rxg4 {[%clk 0:01:20]} 35. Rb5 {[%clk 0:00:16]}  Nxe5 {[%clk 0:01:16]} 36. Rb7+ {[%clk 0:00:16]}  Kc6 {[%clk 0:01:15]} 37. Rb6+ {[%clk 0:00:16]}  Kc7 {[%clk 0:01:09]} 38. fxg7 {[%clk 0:00:16]}  Rxg7 {[%clk 0:01:10]} 39. Ra6 {[%clk 0:00:16]}  Ng4+ {[%clk 0:01:08]} 0-1


[Site "https://www.chess.com"]

[Event "Titled Tuesday Blitz August 16 Late 2022"]
[White "Urh, Zala"]
[Black "Lehtosaari, Mauri"]
[WhiteFideId "14611481"]
[BlackFideId "501999"]
[WhiteElo "2097"]
[BlackElo "2200"]
[Result "1-0"]
[Round "07"]
[TimeControl "180+1"]
[Date "2022.08.18"]
[WhiteClock "0:00:00"]
[BlackClock "0:00:00"]

1. e4 {[%clk 0:00:00]}  c5 {[%clk 0:00:00]} 2. Nf3 {[%clk 0:00:00]}  e6 {[%clk 0:00:00]} 3. d4 {[%clk 0:00:00]}  cxd4 {[%clk 0:00:00]} 4. Nxd4 {[%clk 0:00:00]}  Bc5 {[%clk 0:00:00]} 5. Be3 {[%clk 0:00:00]}  Qb6 {[%clk 0:00:00]} 6. Nb3 {[%clk 0:00:00]}  Bxe3 {[%clk 0:00:00]} 7. fxe3 {[%clk 0:00:00]}  Qxe3+ {[%clk 0:00:00]} 8. Qe2 {[%clk 0:00:00]}  Qxe2+ {[%clk 0:00:00]} 9. Kxe2 {[%clk 0:00:00]}  b6 {[%clk 0:00:00]} 10. Nc3 {[%clk 0:00:00]}  Bb7 {[%clk 0:00:00]} 11. Rd1 {[%clk 0:00:00]}  Ke7 {[%clk 0:00:00]} 12. Kf2 {[%clk 0:00:00]}  Nc6 {[%clk 0:00:00]} 13. Bd3 {[%clk 0:00:00]}  Nf6 {[%clk 0:00:00]} 14. Rhe1 {[%clk 0:00:00]}  Ne5 {[%clk 0:00:00]} 15. h3 {[%clk 0:00:00]}  Rhd8 {[%clk 0:00:00]} 16. Bf1 {[%clk 0:00:00]}  d6 {[%clk 0:00:00]} 17. g4 {[%clk 0:00:00]}  h6 {[%clk 0:00:00]} 18. Kg3 {[%clk 0:00:00]}  Rac8 {[%clk 0:00:00]} 19. Bg2 {[%clk 0:00:00]}  a6 {[%clk 0:00:00]} 20. Nd4 {[%clk 0:00:00]}  b5 {[%clk 0:00:00]} 21. a3 {[%clk 0:00:00]}  Nc4 {[%clk 0:00:00]} 22. e5 {[%clk 0:00:00]}  Nd5 {[%clk 0:00:00]} 23. exd6+ {[%clk 0:00:00]}  Kf6 {[%clk 0:00:00]} 24. Nxd5+ {[%clk 0:00:00]}  exd5 {[%clk 0:00:00]} 25. b3 {[%clk 0:00:00]}  Nxa3 {[%clk 0:00:00]} 26. Re7 {[%clk 0:00:00]}  Rc3+ {[%clk 0:00:00]} 27. Kh2 {[%clk 0:00:00]}  Bc6 {[%clk 0:00:00]} 28. Rf1+ {[%clk 0:00:00]}  Kg6 {[%clk 0:00:00]} 29. Rfxf7 {[%clk 0:00:00]}  Rg8 {[%clk 0:00:00]} 30. d7 {[%clk 0:00:00]}  Bxd7 {[%clk 0:00:00]} 31. Rxd7 {[%clk 0:00:00]}  Nxc2 {[%clk 0:00:00]} 32. Nxc2 {[%clk 0:00:00]}  Rxc2 {[%clk 0:00:00]} 33. Kg3 {[%clk 0:00:00]}  h5 {[%clk 0:00:00]} 34. Bxd5 {[%clk 0:00:00]}  Rc3+ {[%clk 0:00:00]} 35. Rf3 {[%clk 0:00:00]}  Rxf3+ {[%clk 0:00:00]} 36. Bxf3 {[%clk 0:00:00]}  hxg4 {[%clk 0:00:00]} 37. hxg4 {[%clk 0:00:00]}  Rf8 {[%clk 0:00:00]} 38. Rd6+ {[%clk 0:00:00]}  Rf6 {[%clk 0:00:00]} 39. Rxf6+ {[%clk 0:00:00]}  Kxf6 {[%clk 0:00:00]} 40. b4 {[%clk 0:00:00]}  Ke5 {[%clk 0:00:00]} 41. Bb7 {[%clk 0:00:00]}  Kd4 {[%clk 0:00:00]} 42. Bxa6 {[%clk 0:00:00]}  Kc4 {[%clk 0:00:00]} 43. Kf4 {[%clk 0:00:00]}  Kxb4 {[%clk 0:00:00]} 44. Kg5 {[%clk 0:00:00]}  Ka5 {[%clk 0:00:00]} 45. Bc8 {[%clk 0:00:00]}  b4 {[%clk 0:00:00]} 46. Kg6 {[%clk 0:00:00]}  Kb6 {[%clk 0:00:00]} 47. Bf5 {[%clk 0:00:00]}  Kc7 {[%clk 0:00:00]} 48. Kxg7 {[%clk 0:00:00]}  Kd6 {[%clk 0:00:00]} 49. Kf6 {[%clk 0:00:00]}  Kc7 {[%clk 0:00:00]} 50. g5 {[%clk 0:00:00]}  Kd8 {[%clk 0:00:00]} 51. Kf7 {[%clk 0:00:00]}  Kc7 {[%clk 0:00:00]} 52. g6 {[%clk 0:00:00]}  Kd6 {[%clk 0:00:00]} 53. g7 {[%clk 0:00:00]}  Ke5 {[%clk 0:00:00]} 54. Bb1 {[%clk 0:00:00]}  Kd4 {[%clk 0:00:00]} 55. g8=Q {[%clk 0:00:00]}  Kc3 {[%clk 0:00:00]} 56. Qg2 {[%clk 0:00:00]}  Kb3 {[%clk 0:00:00]} 57. Qc2+ {[%clk 0:00:00]}  Ka3 {[%clk 0:00:00]} 58. Qa2# {[%clk 0:00:00]} 1-0


[Site "https://www.chess.com"]

[Event "Titled Tuesday Blitz August 16 Late 2022"]
[White "Winkels, Marcel"]
[Black "Alexikov, Alexander"]
[WhiteFideId "1003887"]
[BlackFideId "14103958"]
[WhiteElo "1900"]
[BlackElo "2253"]
[Result "0-1"]
[Round "07"]
[TimeControl "180+1"]
[Date "2022.08.18"]
[WhiteClock "0:00:00"]
[BlackClock "0:00:00"]

1. e4 {[%clk 0:00:00]}  c5 {[%clk 0:00:00]} 2. Nf3 {[%clk 0:00:00]}  d6 {[%clk 0:00:00]} 3. Bb5+ {[%clk 0:00:00]}  Nd7 {[%clk 0:00:00]} 4. c4 {[%clk 0:00:00]}  Nf6 {[%clk 0:00:00]} 5. Nc3 {[%clk 0:00:00]}  g6 {[%clk 0:00:00]} 6. d4 {[%clk 0:00:00]}  cxd4 {[%clk 0:00:00]} 7. Nxd4 {[%clk 0:00:00]}  Bg7 {[%clk 0:00:00]} 8. O-O {[%clk 0:00:00]}  O-O {[%clk 0:00:00]} 9. Ba4 {[%clk 0:00:00]}  Nb6 {[%clk 0:00:00]} 10. Bb3 {[%clk 0:00:00]}  a6 {[%clk 0:00:00]} 11. Be3 {[%clk 0:00:00]}  Ng4 {[%clk 0:00:00]} 12. Bg5 {[%clk 0:00:00]}  h6 {[%clk 0:00:00]} 13. h3 {[%clk 0:00:00]}  Nxf2 {[%clk 0:00:00]} 14. Rxf2 {[%clk 0:00:00]}  hxg5 {[%clk 0:00:00]} 15. Rc1 {[%clk 0:00:00]}  e6 {[%clk 0:00:00]} 16. Qd2 {[%clk 0:00:00]}  Qe7 {[%clk 0:00:00]} 17. Rd1 {[%clk 0:00:00]}  Be5 {[%clk 0:00:00]} 18. Nf3 {[%clk 0:00:00]}  Bf4 {[%clk 0:00:00]} 19. Qd3 {[%clk 0:00:00]}  Bd7 {[%clk 0:00:00]} 20. a4 {[%clk 0:00:00]}  Rac8 {[%clk 0:00:00]} 21. a5 {[%clk 0:00:00]}  Na8 {[%clk 0:00:00]} 22. Nd4 {[%clk 0:00:00]}  Nc7 {[%clk 0:00:00]} 23. Rdf1 {[%clk 0:00:00]}  Ne8 {[%clk 0:00:00]} 24. g3 {[%clk 0:00:00]}  Be5 {[%clk 0:00:00]} 25. Nf3 {[%clk 0:00:00]}  Bxg3 {[%clk 0:00:00]} 26. Rg2 {[%clk 0:00:00]}  Bf4 {[%clk 0:00:00]} 27. Ne2 {[%clk 0:00:00]}  Ng7 {[%clk 0:00:00]} 28. Nxf4 {[%clk 0:00:00]}  gxf4 {[%clk 0:00:00]} 29. Ng5 {[%clk 0:00:00]}  Nh5 {[%clk 0:00:00]} 30. Bc2 {[%clk 0:00:00]}  Rc5 {[%clk 0:00:00]} 31. h4 {[%clk 0:00:00]}  Rxa5 {[%clk 0:00:00]} 32. b4 {[%clk 0:00:00]}  Re5 {[%clk 0:00:00]} 33. Nf3 {[%clk 0:00:00]}  Bc6 {[%clk 0:00:00]} 34. Nxe5 {[%clk 0:00:00]}  dxe5 {[%clk 0:00:00]} 35. Kh2 {[%clk 0:00:00]}  Qxh4+ {[%clk 0:00:00]} 36. Qh3 {[%clk 0:00:00]}  Qxh3+ {[%clk 0:00:00]} 37. Kxh3 {[%clk 0:00:00]}  Ng3 {[%clk 0:00:00]} 38. Rd1 {[%clk 0:00:00]}  Nxe4 {[%clk 0:00:00]} 39. Rh2 {[%clk 0:00:00]}  f5 {[%clk 0:00:00]} 40. Re1 {[%clk 0:00:00]}  Kg7 {[%clk 0:00:00]} 41. Kg2 {[%clk 0:00:00]}  Nd2+ {[%clk 0:00:00]} 42. Kf2 {[%clk 0:00:00]}  Nxc4 {[%clk 0:00:00]} 43. Bb3 {[%clk 0:00:00]}  b5 {[%clk 0:00:00]} 44. Rc1 {[%clk 0:00:00]}  Bd5 {[%clk 0:00:00]} 45. Rh3 {[%clk 0:00:00]}  e4 {[%clk 0:00:00]} 0-1


[Site "https://www.chess.com"]

[Event "Titled Tuesday Blitz August 16 Late 2022"]
[White "Yaksin, Oleg"]
[Black "Olenik Campa, Rudi"]
[WhiteFideId "24105880"]
[BlackFideId "14633264"]
[WhiteElo "2256"]
[BlackElo "2008"]
[Result "1-0"]
[Round "07"]
[TimeControl "180+1"]
[Date "2022.08.18"]
[WhiteClock "0:00:00"]
[BlackClock "0:00:00"]

1. d4 {[%clk 0:00:00]}  Nf6 {[%clk 0:00:00]} 2. Bg5 {[%clk 0:00:00]}  Ne4 {[%clk 0:00:00]} 3. h4 {[%clk 0:00:00]}  c5 {[%clk 0:00:00]} 4. dxc5 {[%clk 0:00:00]}  Nxc5 {[%clk 0:00:00]} 5. Nd2 {[%clk 0:00:00]}  d5 {[%clk 0:00:00]} 6. Ngf3 {[%clk 0:00:00]}  Nc6 {[%clk 0:00:00]} 7. c3 {[%clk 0:00:00]}  h6 {[%clk 0:00:00]} 8. Be3 {[%clk 0:00:00]}  Nd7 {[%clk 0:00:00]} 9. g3 {[%clk 0:00:00]}  Nf6 {[%clk 0:00:00]} 10. Bg2 {[%clk 0:00:00]}  Bf5 {[%clk 0:00:00]} 11. O-O {[%clk 0:00:00]}  e5 {[%clk 0:00:00]} 12. Nb3 {[%clk 0:00:00]}  Be7 {[%clk 0:00:00]} 13. Bc5 {[%clk 0:00:00]}  O-O {[%clk 0:00:00]} 14. Bxe7 {[%clk 0:00:00]}  Qxe7 {[%clk 0:00:00]} 15. e3 {[%clk 0:00:00]}  a5 {[%clk 0:00:00]} 16. a4 {[%clk 0:00:00]}  Bg4 {[%clk 0:00:00]} 17. Qc2 {[%clk 0:00:00]}  Rad8 {[%clk 0:00:00]} 18. Rfe1 {[%clk 0:00:00]}  b6 {[%clk 0:00:00]} 19. Nfd2 {[%clk 0:00:00]}  e4 {[%clk 0:00:00]} 20. Bf1 {[%clk 0:00:00]}  Ne5 {[%clk 0:00:00]} 21. Nd4 {[%clk 0:00:00]}  Rc8 {[%clk 0:00:00]} 22. Qb3 {[%clk 0:00:00]}  Nfd7 {[%clk 0:00:00]} 23. Qa3 {[%clk 0:00:00]}  Nc5 {[%clk 0:00:00]} 24. b4 {[%clk 0:00:00]}  Ncd3 {[%clk 0:00:00]} 25. Bxd3 {[%clk 0:00:00]}  Nxd3 {[%clk 0:00:00]} 26. Rf1 {[%clk 0:00:00]}  axb4 {[%clk 0:00:00]} 27. cxb4 {[%clk 0:00:00]}  Bh3 {[%clk 0:00:00]} 28. Rfb1 {[%clk 0:00:00]}  Qf6 {[%clk 0:00:00]} 29. f4 {[%clk 0:00:00]}  exf3 {[%clk 0:00:00]} 30. Qxd3 {[%clk 0:00:00]}  Rfe8 {[%clk 0:00:00]} 31. Kf2 {[%clk 0:00:00]}  Qe5 {[%clk 0:00:00]} 32. N2xf3 {[%clk 0:00:00]}  Qb8 {[%clk 0:00:00]} 33. Rc1 {[%clk 0:00:00]}  Bg4 {[%clk 0:00:00]} 34. b5 {[%clk 0:00:00]}  Qd6 {[%clk 0:00:00]} 35. Qb3 {[%clk 0:00:00]}  Rc5 {[%clk 0:00:00]} 36. a5 {[%clk 0:00:00]}  Rec8 {[%clk 0:00:00]} 37. Rxc5 {[%clk 0:00:00]}  bxc5 {[%clk 0:00:00]} 38. b6 {[%clk 0:00:00]}  cxd4 {[%clk 0:00:00]} 39. b7 {[%clk 0:00:00]}  Re8 {[%clk 0:00:00]} 40. exd4 {[%clk 0:00:00]}  Qe6 {[%clk 0:00:00]} 41. Re1 {[%clk 0:00:00]} 1-0


[Site "https://www.chess.com"]

[Event "Titled Tuesday Blitz August 16 Late 2022"]
[White "Yanchenko, Roman"]
[Black "Maltsevskaya, Aleksandra"]
[WhiteFideId "4137329"]
[BlackFideId "24174041"]
[WhiteElo "2514"]
[BlackElo "2243"]
[Result "1-0"]
[Round "07"]
[TimeControl "180+1"]
[Date "2022.08.16"]
[WhiteClock "0:00:35"]
[BlackClock "0:00:02"]

1. d4 {[%clk 0:03:00]}  Nf6 {[%clk 0:02:59]} 2. c4 {[%clk 0:03:00]}  g6 {[%clk 0:02:59]} 3. Nf3 {[%clk 0:03:01]}  Bg7 {[%clk 0:02:59]} 4. Nc3 {[%clk 0:03:02]}  O-O {[%clk 0:03:00]} 5. Bf4 {[%clk 0:03:02]}  d6 {[%clk 0:03:01]} 6. e3 {[%clk 0:03:02]}  Nbd7 {[%clk 0:03:01]} 7. Be2 {[%clk 0:03:02]}  b6 {[%clk 0:03:02]} 8. O-O {[%clk 0:03:03]}  Bb7 {[%clk 0:03:03]} 9. Rc1 {[%clk 0:03:03]}  Ne4 {[%clk 0:03:03]} 10. Nxe4 {[%clk 0:03:01]}  Bxe4 {[%clk 0:03:04]} 11. h3 {[%clk 0:03:01]}  e5 {[%clk 0:03:03]} 12. dxe5 {[%clk 0:03:01]}  dxe5 {[%clk 0:03:04]} 13. Bg3 {[%clk 0:03:01]}  Qe7 {[%clk 0:03:02]} 14. Bh4 {[%clk 0:02:59]}  f6 {[%clk 0:02:55]} 15. Qb3 {[%clk 0:02:57]}  Nc5 {[%clk 0:02:54]} 16. Qa3 {[%clk 0:02:56]}  a5 {[%clk 0:02:53]} 17. Rfd1 {[%clk 0:02:56]}  Rfd8 {[%clk 0:02:53]} 18. b3 {[%clk 0:02:50]}  Qe6 {[%clk 0:02:46]} 19. Ne1 {[%clk 0:02:25]}  h5 {[%clk 0:02:09]} 20. Qb2 {[%clk 0:02:21]}  Qc6 {[%clk 0:01:58]} 21. a3 {[%clk 0:02:09]}  Kh7 {[%clk 0:01:30]} 22. Bg3 {[%clk 0:02:04]}  Qe8 {[%clk 0:01:25]} 23. b4 {[%clk 0:01:48]}  axb4 {[%clk 0:01:22]} 24. axb4 {[%clk 0:01:49]}  Ne6 {[%clk 0:00:56]} 25. Rxd8 {[%clk 0:01:31]}  Rxd8 {[%clk 0:00:55]} 26. c5 {[%clk 0:01:31]}  bxc5 {[%clk 0:00:43]} 27. bxc5 {[%clk 0:01:31]}  Bf8 {[%clk 0:00:41]} 28. Qb4 {[%clk 0:01:24]}  Qc6 {[%clk 0:00:15]} 29. Bh4 {[%clk 0:01:09]}  g5 {[%clk 0:00:11]} 30. Bg3 {[%clk 0:01:09]}  h4 {[%clk 0:00:12]} 31. Bb5 {[%clk 0:01:02]}  Qb7 {[%clk 0:00:11]} 32. Bxh4 {[%clk 0:00:51]}  gxh4 {[%clk 0:00:09]} 33. f3 {[%clk 0:00:51]}  Bc6 {[%clk 0:00:07]} 34. Qxh4+ {[%clk 0:00:51]}  Kg8 {[%clk 0:00:07]} 35. Bc4 {[%clk 0:00:51]}  Bd5 {[%clk 0:00:08]} 36. Qg4+ {[%clk 0:00:51]}  Kf7 {[%clk 0:00:07]} 37. Bd3 {[%clk 0:00:49]}  e4 {[%clk 0:00:04]} 38. fxe4 {[%clk 0:00:47]}  Ba2 {[%clk 0:00:03]} 39. e5 {[%clk 0:00:46]}  Qd5 {[%clk 0:00:02]} 40. Qg6+ {[%clk 0:00:42]}  Ke7 {[%clk 0:00:02]} 41. exf6+ {[%clk 0:00:38]}  Kd7 {[%clk 0:00:02]} 42. Nf3 {[%clk 0:00:35]} 1-0


[Site "https://www.chess.com"]

[Event "Titled Tuesday Blitz August 16 Late 2022"]
[White "Acosta Cruz, Oscar Yosimar"]
[Black "Mirimanian, Hayk"]
[WhiteFideId "5111269"]
[BlackFideId "4700180"]
[WhiteElo "2147"]
[BlackElo "2280"]
[Result "1-0"]
[Round "08"]
[TimeControl "180+1"]
[Date "2022.08.18"]
[WhiteClock "0:00:00"]
[BlackClock "0:00:00"]

1. b3 {[%clk 0:00:00]}  b6 {[%clk 0:00:00]} 2. Bb2 {[%clk 0:00:00]}  Bb7 {[%clk 0:00:00]} 3. e3 {[%clk 0:00:00]}  Nf6 {[%clk 0:00:00]} 4. Nf3 {[%clk 0:00:00]}  e6 {[%clk 0:00:00]} 5. c4 {[%clk 0:00:00]}  Be7 {[%clk 0:00:00]} 6. Be2 {[%clk 0:00:00]}  O-O {[%clk 0:00:00]} 7. O-O {[%clk 0:00:00]}  Ne4 {[%clk 0:00:00]} 8. d3 {[%clk 0:00:00]}  Nf6 {[%clk 0:00:00]} 9. Nbd2 {[%clk 0:00:00]}  c5 {[%clk 0:00:00]} 10. Rc1 {[%clk 0:00:00]}  Nc6 {[%clk 0:00:00]} 11. Qc2 {[%clk 0:00:00]}  Rc8 {[%clk 0:00:00]} 12. Rfd1 {[%clk 0:00:00]}  Qc7 {[%clk 0:00:00]} 13. Qb1 {[%clk 0:00:00]}  Qb8 {[%clk 0:00:00]} 14. Qa1 {[%clk 0:00:00]}  Rfd8 {[%clk 0:00:00]} 15. d4 {[%clk 0:00:00]}  cxd4 {[%clk 0:00:00]} 16. Nxd4 {[%clk 0:00:00]}  Nxd4 {[%clk 0:00:00]} 17. Bxd4 {[%clk 0:00:00]}  d5 {[%clk 0:00:00]} 18. Bf3 {[%clk 0:00:00]}  Qa8 {[%clk 0:00:00]} 19. cxd5 {[%clk 0:00:00]}  Bxd5 {[%clk 0:00:00]} 20. Bxd5 {[%clk 0:00:00]}  Qxd5 {[%clk 0:00:00]} 21. Nf3 {[%clk 0:00:00]}  Qh5 {[%clk 0:00:00]} 22. h3 {[%clk 0:00:00]}  h6 {[%clk 0:00:00]} 23. Be5 {[%clk 0:00:00]}  Qf5 {[%clk 0:00:00]} 24. Rxd8+ {[%clk 0:00:00]}  Rxd8 {[%clk 0:00:00]} 25. Qc3 {[%clk 0:00:00]}  Nd5 {[%clk 0:00:00]} 26. Qc4 {[%clk 0:00:00]}  Qh5 {[%clk 0:00:00]} 27. e4 {[%clk 0:00:00]}  Nf6 {[%clk 0:00:00]} 28. Qc7 {[%clk 0:00:00]}  Rd7 {[%clk 0:00:00]} 29. Qb8+ {[%clk 0:00:00]}  Rd8 {[%clk 0:00:00]} 30. Qxa7 {[%clk 0:00:00]}  Bc5 {[%clk 0:00:00]} 31. Qc7 {[%clk 0:00:00]}  Ra8 {[%clk 0:00:00]} 32. Bxf6 {[%clk 0:00:00]}  gxf6 {[%clk 0:00:00]} 33. a4 {[%clk 0:00:00]}  Qg6 {[%clk 0:00:00]} 34. Qc6 {[%clk 0:00:00]}  Kh7 {[%clk 0:00:00]} 35. Qxa8 {[%clk 0:00:00]} 1-0


[Site "https://www.chess.com"]

[Event "Titled Tuesday Blitz August 16 Late 2022"]
[White "Akbas, Umut Ata"]
[Black "Kruckenhauser, Arthur"]
[WhiteFideId "44572646"]
[BlackFideId "1642812"]
[WhiteElo "1654"]
[BlackElo "2218"]
[Result "1-0"]
[Round "08"]
[TimeControl "180+1"]
[Date "2022.08.16"]
[WhiteClock "0:02:48"]
[BlackClock "0:02:50"]

1. Nf3 {[%clk 0:03:00]}  d5 {[%clk 0:02:59]} 2. e3 {[%clk 0:03:00]}  Nf6 {[%clk 0:02:59]} 3. c4 {[%clk 0:03:00]}  e6 {[%clk 0:02:59]} 4. Nc3 {[%clk 0:03:01]}  Be7 {[%clk 0:03:00]} 5. b3 {[%clk 0:03:01]}  O-O {[%clk 0:03:00]} 6. Bb2 {[%clk 0:03:02]}  dxc4 {[%clk 0:03:00]} 7. Bxc4 {[%clk 0:03:02]}  a6 {[%clk 0:03:00]} 8. O-O {[%clk 0:03:02]}  b5 {[%clk 0:03:01]} 9. Be2 {[%clk 0:03:03]}  Bb7 {[%clk 0:03:01]} 10. d4 {[%clk 0:03:03]}  Nbd7 {[%clk 0:03:02]} 11. Rc1 {[%clk 0:03:02]}  c5 {[%clk 0:03:02]} 12. h3 {[%clk 0:03:00]}  Rc8 {[%clk 0:03:02]} 13. Qd2 {[%clk 0:02:51]}  cxd4 {[%clk 0:03:01]} 14. Nxd4 {[%clk 0:02:51]}  Ne5 {[%clk 0:02:50]} 15. Rfd1 {[%clk 0:02:48]} 1-0


[Site "https://www.chess.com"]

[Event "Titled Tuesday Blitz August 16 Late 2022"]
[White "Al Hosani, Omran"]
[Black "Buchenau, Frank"]
[WhiteFideId "9308733"]
[BlackFideId "4604350"]
[WhiteElo "2236"]
[BlackElo "2157"]
[Result "1-0"]
[Round "08"]
[TimeControl "180+1"]
[Date "2022.08.18"]
[WhiteClock "0:00:00"]
[BlackClock "0:00:00"]

1. d4 {[%clk 0:00:00]}  e6 {[%clk 0:00:00]} 2. e4 {[%clk 0:00:00]}  d5 {[%clk 0:00:00]} 3. e5 {[%clk 0:00:00]}  c5 {[%clk 0:00:00]} 4. c3 {[%clk 0:00:00]}  Qb6 {[%clk 0:00:00]} 5. Nf3 {[%clk 0:00:00]}  Bd7 {[%clk 0:00:00]} 6. a3 {[%clk 0:00:00]}  Bb5 {[%clk 0:00:00]} 7. Bxb5+ {[%clk 0:00:00]}  Qxb5 {[%clk 0:00:00]} 8. Qe2 {[%clk 0:00:00]}  Qxe2+ {[%clk 0:00:00]} 9. Kxe2 {[%clk 0:00:00]}  Nc6 {[%clk 0:00:00]} 10. Be3 {[%clk 0:00:00]}  c4 {[%clk 0:00:00]} 11. Nbd2 {[%clk 0:00:00]}  Nge7 {[%clk 0:00:00]} 12. a4 {[%clk 0:00:00]}  Nf5 {[%clk 0:00:00]} 13. b4 {[%clk 0:00:00]}  cxb3 {[%clk 0:00:00]} 14. Nxb3 {[%clk 0:00:00]}  Rc8 {[%clk 0:00:00]} 15. a5 {[%clk 0:00:00]}  Be7 {[%clk 0:00:00]} 16. Rhc1 {[%clk 0:00:00]}  Kd7 {[%clk 0:00:00]} 17. Bd2 {[%clk 0:00:00]}  Nb8 {[%clk 0:00:00]} 18. Kd3 {[%clk 0:00:00]}  Rc4 {[%clk 0:00:00]} 19. g4 {[%clk 0:00:00]}  Nh4 {[%clk 0:00:00]} 20. Nxh4 {[%clk 0:00:00]}  Bxh4 {[%clk 0:00:00]} 21. f4 {[%clk 0:00:00]}  Be7 {[%clk 0:00:00]} 22. f5 {[%clk 0:00:00]}  h5 {[%clk 0:00:00]} 23. fxe6+ {[%clk 0:00:00]}  fxe6 {[%clk 0:00:00]} 24. g5 {[%clk 0:00:00]}  Rf8 {[%clk 0:00:00]} 25. Rf1 {[%clk 0:00:00]}  Rcc8 {[%clk 0:00:00]} 26. h4 {[%clk 0:00:00]}  Rxf1 {[%clk 0:00:00]} 27. Rxf1 {[%clk 0:00:00]}  Rf8 {[%clk 0:00:00]} 28. Rxf8 {[%clk 0:00:00]}  Bxf8 {[%clk 0:00:00]} 29. c4 {[%clk 0:00:00]}  Nc6 {[%clk 0:00:00]} 30. c5 {[%clk 0:00:00]}  Ne7 {[%clk 0:00:00]} 31. Nc1 {[%clk 0:00:00]}  Nf5 {[%clk 0:00:00]} 32. Be1 {[%clk 0:00:00]}  Kc6 {[%clk 0:00:00]} 33. Ne2 {[%clk 0:00:00]}  Kb5 {[%clk 0:00:00]} 34. Nf4 {[%clk 0:00:00]}  b6 {[%clk 0:00:00]} 35. axb6 {[%clk 0:00:00]}  axb6 {[%clk 0:00:00]} 36. cxb6 {[%clk 0:00:00]}  Kxb6 {[%clk 0:00:00]} 37. Nxe6 {[%clk 0:00:00]}  Be7 {[%clk 0:00:00]} 38. Nf4 {[%clk 0:00:00]}  Kc6 {[%clk 0:00:00]} 39. Nxh5 {[%clk 0:00:00]} 1-0


[Site "https://www.chess.com"]